Cogmind - Beta 16 @@@ ROGUE MODE // 2025.10.24 @ 17:06:42 Player: freddy fastbear Result: Destroyed by Piercing Trap Performance ------------- Evolutions (0) 0 Regions Visited (2) 400 Robots Destroyed (30) 150 Value Destroyed (755) 755 Prototype IDs (2) 40 Alien Tech Used (0) 0 Bonus (0) 0 TOTAL SCORE: 1345 Bonus ------- None Cogmind --------- Core Integrity 0/250 Matter 300/300 Energy 309/315 System Corruption 1% Temperature Cool (4) Movement Walking (120) Location -10/Subcaves Parts ------- > --- POWER (1) -------- Neutrino Core > --- PROPULSION (2) --- Myomer Leg Myomer Leg > --- UTILITY (2) ------ Improved Heat Sink Small Storage Unit > --- WEAPON (2) ------- Beam Cannon > --- INVENTORY (8) ---- Light Ion Engine Subdweller Monowheel Heat Sink ECM Suite Scrap Shield Dirty Datajack (20) Peak State ------------ > --- POWER ------------ Neutrino Core > --- PROPULSION ------- Myomer Leg Myomer Leg > --- UTILITY ---------- Improved Heat Sink Small Storage Unit > --- WEAPON ----------- Beam Cannon Beam Cannon > --- INVENTORY -------- Light Ion Engine Subdweller Monowheel Heat Sink ECM Suite Scrap Shield Dirty Datajack [Rating: 27] Favorites ----------- Power Ion Engine Engine Ion Engine Power Core Light Nuclear Core Propulsion Aluminum Leg Leg Aluminum Leg Wheel Compact Wheel Flight Unit Flight Unit Utility Small Storage Unit Device Improved Heat Sink Storage Small Storage Unit Weapon Beam Cannon Energy Gun Medium Laser Energy Cannon Beam Cannon Ballistic Gun Assault Rifle Build | -11 -10 -10 ------- Run | Yrd Mat Sub Slots Evolved . | . . . Power . | . . . Propulsion . | . . . Utility . | . . . Weapon . | . . . Parts Attached 22 | 6 11 5 Power 3 | 1 1 1 Engine 1 | 1 . . Core 2 | . 1 1 Reactor . | . . . Propulsion 9 | 2 4 3 Treads . | . . . Leg 6 | 2 2 2 Wheel 2 | . 1 1 Hover . | . . . Flight 1 | . 1 . Utility 4 | 1 3 . Device 3 | . 3 . Storage 1 | 1 . . Processor . | . . . Hackware . | . . . Protection . | . . . Artifact . | . . . Weapon 6 | 2 3 1 Energy Gun 1 | 1 . . Energy Cannon 4 | . 3 1 Ballistic Gun 1 | 1 . . Ballistic Cannon . | . . . Launcher . | . . . Special Weapon . | . . . Impact Weapon . | . . . Slashing Weapon . | . . . Piercing Weapon . | . . . Special Melee Weapon . | . . . Unidentified Prototypes . | . . . Parts Lost 7 | . 3 4 Power 1 | . . 1 Propulsion 2 | . 1 1 Utility 1 | . 1 . Weapon 3 | . 1 2 Highest Loss Streak 4 | . 1 4 To Critical Strikes . | . . . Average Backups 7 | 2 7 6 Power . | . . . Propulsion 2 | 1 3 . Utility 1 | . 1 3 Weapon 1 | . 1 . Tool/Special . | . . . Unused Backups 13 | . 6 7 Power 3 | . 2 1 Propulsion 4 | . 2 2 Utility 4 | . 1 3 Weapon 1 | . 1 . Tool/Special 1 | . . 1 Average Slot Usage (%) 97 | . 97 99 Engine 7 | . 8 . Core 6 | . 5 14 Leg 20 | . 22 1 Wheel 6 | . 5 16 Device 12 | . 12 14 Storage 14 | . 14 14 Energy Gun 1 | . 1 . Energy Cannon 22 | . 21 28 Ballistic Gun 3 | . 3 . Peak Build Rating 27 | 6 11 27 Average Rating 8 | 4 8 13 On Entrance 5 | . 6 11 Avg Prop Armor Cover (%) 8 | . 8 4 Naked Turns . | . . . Heaviest Build 26 | 14 17 26 Greatest Support 50 | 20 20 50 Greatest Overweight (x) 3 | 3 1 1 Average Overweight (x) . | . . . Largest Inventory Capacity 8 | 8 8 8 Average Capacity 7 | 7 8 8 Most Carried 8 | 5 8 8 Average Carried 7 | 2 7 7 Final Capacity 8 | 8 8 8 Final Carried 8 | 5 8 7 Class Distribution -------------------- 95% | Mutant 4% | Scavenger-Mutant Dominant Class ---------------- Mutant | -10/Materials Mutant | -10/Subcaves Resources | -11 -10 -10 ----------- Run | Yrd Mat Sub Matter Collected 615 | 182 398 35 Remotely . | . . . Salvage Created 1108 | . 1031 77 Parts 57 | . 52 5 Haulers Intercepted 1 | . 1 . Recyclers Shooed 2 | . 2 . Parts Field Recycled . | . . . Retrieved Matter . | . . . Parts Self-Destructed 3 | . . 3 Prevented . | . . . Parts Restored . | . . . Kills | -11 -10 -10 ------- Run | Yrd Mat Sub Combat Hostiles Destroyed 24 | . 21 3 Guns 4 | . 4 . Cannons 19 | . 16 3 Classes Destroyed 6 | . 5 1 Hauler 1 | . 1 . Recycler 2 | . 2 . Watcher 3 | . 3 . Swarmer 7 | . 5 2 Grunt 16 | . 16 . Subdweller 1 | . . 1 Best Kill Streak 5 | . 5 2 Combat Bots Only 4 | . 4 2 Max Kills in Single Turn 2 | . 2 1 Gunslinging . | . . . Exploded . | . . . Melee . | . . . Uniques/NPCs Destroyed . | . . . Combat | -11 -10 -10 -------- Run | Yrd Mat Sub Hostile Shots Fired 182 | . 107 75 Missed 57 | . 32 25 Hits 125 | . 75 50 Projectile 125 | . 75 50 Critical Strikes 2 | . 1 1 Damage Taken 1157 | . 816 341 Core 251 | . 163 88 Absorbed by Shields . | . . . Regen/Repaired (Parts) 42 | . 42 . Core Remaining (%) 100 | 100 . . Volleys Fired 84 | . 79 5 Largest 2 | . 2 2 Hottest 120 | . 120 120 Shots Fired 164 | . 154 10 Gun 52 | . 52 . Cannon 112 | . 102 10 Launcher . | . . . Special . | . . . Kinetic 40 | . 40 . Thermal 124 | . 114 10 Explosive . | . . . Electromagnetic . | . . . Robot Hit Streak 8 | . 8 3 Robot Miss Streak 9 | . 9 2 Penetration Max . | . . . Secondary Targets . | . . . Shots Hit Robots 77 | . 72 5 Core Hits 38 | . 35 3 Critical Kills 2 | . 2 . Critical Parts Destroyed . | . . . Critical Strikes 4 | . 4 . Burn 2 | . 2 . Meltdown 2 | . 2 . Melee Attacks . | . . . Impact . | . . . Slashing . | . . . Piercing . | . . . Sneak Attacks . | . . . Combat Hostiles . | . . . Follow-up Attacks . | . . . Damage Inflicted 1335 | . 1247 88 Guns 367 | . 367 . Cannons 965 | . 877 88 Explosions . | . . . Melee . | . . . Ramming 3 | . 3 . Kinetic 293 | . 293 . Thermal 1039 | . 951 88 Explosive . | . . . Electromagnetic . | . . . Impact . | . . . Slashing . | . . . Piercing . | . . . Highest Corruption 1 | . 1 1 Average Corruption 1 | . 1 1 Corruption Purged . | . . . Corruption Blocked . | . . . Effects 4 | . 4 . Message Errors 1 | . 1 . Energy Discharges 1 | . 1 . Parts Fused 1 | . 1 . Data Loss (major) 1 | . 1 . Overload Shots . | . . . Overflow Damage 19 | . 19 . Projectiles 19 | . 19 . Explosions . | . . . Melee . | . . . Knockbacks . | . . . Impact . | . . . Kinetic . | . . . Secondary . | . . . Self-Inflicted Damage . | . . . Shots . | . . . Rammed . | . . . Targets Rammed 1 | . 1 . Kicked 1 | . 1 . Crushed . | . . . Highest Temperature 216 | . 216 . Average Temperature 52 | . 52 . Received Heat Transfer 474 | . 312 162 Siege Activations . | . . . Martial Activations . | . . . Shielding Activations . | . . . Robots Disrupted . | . . . Combat Hostiles . | . . . Robots Corrupted . | . . . Combat Hostiles . | . . . Parts Fried . | . . . Impact Corruptions . | . . . Robots Melted 2 | . 2 . Combat Hostiles 1 | . 1 . Parts Melted 2 | . 2 . Heat Transferred 2405 | . 2220 185 Parts Sabotaged . | . . . Parts Stolen . | . . . Parts Stripped . | . . . Power Chain Reactions . | . . . Alert | -11 -10 -10 ------- Run | Yrd Mat Sub Maximum Alert Level . | . . . Low Security (%) 100 | 100 100 . Level 1 . | . . . Level 2 . | . . . Level 3 . | . . . Level 4 . | . . . Level 5 . | . . . High Security . | . . . Max Security . | . . . Peak Influence 130 | . 130 . Initial . | . . . Average 49 | . 52 . Influence Increases 751 | . 621 130 Destroy 0b10 Robot/C 460 | . 420 40 Destroy 0b10 Robot/NC 30 | . 30 . Destroy Leader 98 | . 98 . Successful Hack 53 | . 53 . Destroy Structure 5 | . 5 . Lose Combat Pursuer 105 | . 15 90 Influence Decreases 681 | . 564 117 Entered New Map 28 | . . 28 Time Decay 583 | . 534 49 Lost Part 70 | . 30 40 Squads Dispatched 4 | . 4 . Investigation 2 | . 2 . Extermination . | . . . Reinforcement 2 | . 2 . Assault . | . . . Garrison . | . . . Intercept . | . . . Searches Triggered . | . . . Construction Impeded . | . . . Haulers Reinforced . | . . . Active Scanning Responses . | . . . Cargo Convoy Interrupts . | . . . Stealth | -11 -10 -10 --------- Run | Yrd Mat Sub Distress Signals 2 | . 2 . Communications Jammed . | . . . Distress Signals . | . . . Times Spotted 40 | . 33 7 Peak Tracking Total 6 | . 4 6 Tactical Retreats 4 | . 1 3 Traps | -11 -10 -10 ------- Run | Yrd Mat Sub Traps Triggered 9 | . 8 1 Indirectly . | . . . Trap Hack Attempts . | . . . Triggered . | . . . Disarmed . | . . . Reprogrammed . | . . . Reused . | . . . Traps Extracted . | . . . Installed . | . . . Triggered . | . . . Machines | -11 -10 -10 ---------- Run | Yrd Mat Sub Machines Disabled . | . . . Max in Single Turn . | . . . Machines Repaired . | . . . Machines Dismantled . | . . . Machines Sabotaged . | . . . Overloaded Fab Kills . | . . . Hacking | -11 -10 -10 --------- Run | Yrd Mat Sub Machines Accessed 9 | . 9 . Terminals 6 | . 6 . Fabricators . | . . . Repair Stations 1 | . 1 . Recycling Units 2 | . 2 . Scanalyzers . | . . . Garrison Access . | . . . Total Hacks 21 | . 21 . Successful 11 | . 11 . Failed 10 | . 10 . Catastrophic 1 | . 1 . Database Lockouts . | . . . Manual . | . . . Terminals 15 | . 15 . Fabricators . | . . . Repair Stations 2 | . 2 . Recycling Units 4 | . 4 . Scanalyzers . | . . . Garrison Access . | . . . Terminal Hacks 7 | . 7 . Prototype ID Bank 1 | . 1 . Alert Level 1 | . 1 . Hauler Manifests 1 | . 1 . Zone Layout 4 | . 4 . Fabricator Hacks . | . . . Repair Station Hacks 2 | . 2 . Scan Component 1 | . 1 . Repair 1 | . 1 . Recycling Unit Hacks 2 | . 2 . Report Inventory 2 | . 2 . Scanalyzer . | . . . Garrison Access Hacks . | . . . Unauthorized Hacks . | . . . Terminals . | . . . Fabricators . | . . . Repair Stations . | . . . Recycling Units . | . . . Scanalyzers . | . . . Garrison Access . | . . . Data Cores Recovered . | . . . Used . | . . . Hacking Detections 7 | . 7 . Full Trace Events . | . . . Feedback Events . | . . . Feedback Blocked . | . . . Robot Schematics Acquired . | . . . Robots Built . | . . . Authchips . | . . . Time . | . . . Total Robot Build Rating . | . . . Part Schematics Acquired . | . . . Parts Built . | . . . Authchips . | . . . Time . | . . . Total Part Build Rating . | . . . Part Studies Acquired . | . . . Parts Repaired 1 | . 1 . Time 13 | . 13 . Parts Recycled . | . . . Recycled Matter . | . . . Retrieved Matter . | . . . Retrieved Components . | . . . Parts Scanalyzed . | . . . Part Schematics Acquired . | . . . Parts Damaged . | . . . Bothacking | -11 -10 -10 ------------ Run | Yrd Mat Sub Used RIF Installer . | . . . Robots Hacked . | . . . Non-combat . | . . . Combat . | . . . Robot Hacks Applied . | . . . Relay Couplers Released . | . . . Fabnet Peak Effective % . | . . . Robots Rewired . | . . . Allies Hacked . | . . . Hacks Repelled . | . . . Allies | -11 -10 -10 -------- Run | Yrd Mat Sub Total Allies . | . . . Largest Group . | . . . Highest-Rated Group . | . . . Highest-Rated Ally . | . . . Total Orders . | . . . Ally Attacks . | . . . Total Damage . | . . . Kills . | . . . Allies Corrupted . | . . . Allies Melted . | . . . Intel | -11 -10 -10 ------- Run | Yrd Mat Sub Active Infowar (turns) . | . . . Robot Analysis Total . | . . . Derelict Logs Recovered 1 | . . 1 Drone Launches . | . . . Drone Recoveries . | . . . Exploration | -11 -10 -10 ------------- Run | Yrd Mat Sub Turns Passed 2084 | 90 1848 146 Spaces Moved 1400 | 57 1261 82 Core 14 | 13 1 . Treads . | . . . Legs 745 | 44 695 6 Wheels 641 | . 565 76 Hover . | . . . Flight . | . . . Fastest Speed 50 | 50 100 105 Average Speed 117 | 128 117 112 Slowest Speed 200 | 200 120 120 Overloaded Moves . | . . . Propulsion Burnouts . | . . . Robots Hopped . | . . . Potential Cave-ins . | . . . Cave-ins Triggered . | . . . Exploration Rate (%) 35 | 4 100 3 Regions Visited 2 Branch Regions 1 Pre-discovered Areas . | . . . Known Exits Taken . | . . . Unknown Exits Taken 2 | 1 1 . Scrap Searched . | . . . Spaces Dug . | . . . Terrain Destroyed . | . . . Melee . | . . . Projectile . | . . . AOE . | . . . Terrain Rammed . | . . . Walls Destroyed . | . . . Machines Disabled . | . . . Actions | -11 -10 -10 --------- Run | Yrd Mat Sub Total 1677 | 73 1475 129 Wait 98 | . 74 24 Move 1398 | 56 1260 82 Hop . | . . . Pick Up 46 | 11 28 7 Fast Attach . | . . . Attach 21 | 6 12 3 Detach . | . . . Swap 10 | . 8 2 Drop 19 | . 13 6 Fire 84 | . 79 5 Melee . | . . . Ram . | . . . Kick 1 | . 1 . Crush . | . . . Escape Stasis . | . . . Rewire . | . . . Trap . | . . . Miscellaneous . | . . . Route ------- -11/Scrapyard -10/Materials (discovered 5 exits: [*Mat x3] / [*Min] / [*Sub]) -10/Subcaves History --------- Turn | Location | Event 24 | -11/Scrapyard | Discovered new exit (range 15) 91 | -11/Scrapyard | Entered Materials 306 | -10/Materials | Build established: Mutant 333 | -10/Materials | Discovered new exit (range 16) 467 | -10/Materials | Discovered new exit (range 3) 745 | -10/Materials | Discovered new exit (range 15) 817 | -10/Materials | Discovered new exit (range 6) 856 | -10/Materials | Repaired Ion Engine 1029 | -10/Materials | Core integrity fell below 50% 1057 | -10/Materials | Discovered new exit (range 10) 1939 | -10/Materials | Entered Subcaves 1940 | -10/Subcaves | Approached by a straggling Scientist 1959 | -10/Subcaves | Learned Materials emergency access door positions 2053 | -10/Subcaves | Core integrity fell below 20% 2085 | -10/Subcaves | Destroyed by Piercing Trap Last Messages --------------- S-10 Pest destroyed. AC-LQY(h) suffers critical hit (Destroy). AC-LQY(h) destroyed. Acquired Myomer Leg. Lgt. Nuclear Core destroyed. Dropped Lgt. Ion Engine. Acquired Neutrino Core. Flight Unit fries itself beyond repair. Beam Cannon destroyed. Acquired Lgt. Ion Engine. S-10 Pest destroyed. Com. Wheel destroyed. S-10 Pest destroyed. Lgt. Ion Engine fries itself beyond repair. Acquired Myomer Leg. Acquired 35 matter. Beam Cannon destroyed. Triggered Piercing Trap. Spikes shoot up from the floor. Critical hit (Impale). Map ----- +----------------------------------------------------+ | ?????????????????????????????????????????????????? | | ?????????????????????????????????????????????????? | | ?????????????????????????????????????????????????? | | ?????????????????????????????????????????????????? | | ?????????????????????????????????????????????????? | | ?????????????????????????????????????????????????? | | ?????????????????????????????????????????????????? | | ?????????????????????????????????????????????????? | | ?????????????????????????????????????????????????? | | ?????????????????????????????????????????????????? | | ?????????????????????????????????????????????????? | | ?????????????????????????????????????????????????? | | ?????????????????????????????????????????????????? | | ?????????????????????????????????????????????????? | | ????????????????????????????????#####????????????? | | ??????????????????????????####### #########?#### | | ?????????????????????????## ## # #!# #"" # | | ????????????????????????## ## = !=% """ " | | ????????????????????????# = [#= #"# " | | ????????????????????????##% c "#" #####???? | | ?????????????????????????# ##### ## # #??????? | | ?????????????????????????#[%!#??## ?????? | | ?????????????????????????#^% #???### # # ## ???? | | ????????????????????????## #?????########??##??? | | ????????????????????????#; ^##???????????????????? | | ????????????????????????#@ #????????????????????? | | ??????????????????????? ^ #???????????????????? | | ????????????????????? % % % #??????????????????? | | ??????????????????? %% ##??????????????????? | | ????????????????? ## ###???????????????????? | | ????????????????## ??# ; #?????????????????????? | | ?????????????????#???### % #?????????????????????? | | ???????????????????????# #?????????????????????? | | ???????????????????????# %#?????????????????????? | | ???????????????????????# #?????????????????????? | | ??????????????????????? ?????????????????????? | | ??????????????????????? ?????????????????????? | | ??????????????????????? ?????????????????????? | | ??????????????????????? t t ?????????????????????? | | ??????????????????????? " " ?????????????????????? | | ??????????????????????? ? ?"?????????????????????? | | ?????????????????????????????????????????????????? | | ?????????????????????????????????????????????????? | | ?????????????????????????????????????????????????? | | ?????????????????????????????????????????????????? | | ?????????????????????????????????????????????????? | | ?????????????????????????????????????????????????? | | ?????????????????????????????????????????????????? | | ?????????????????????????????????????????????????? | | ?????????????????????????????????????????????????? | +----------------------------------------------------+ Best States ------------- Heat Dissipation 39 Energy Generation 19 Energy Capacity 315 Matter Stores 300 Matter Capacity 300 Sight Range 16 Terrain Scan Density 10 Evasion (%) 55 Item Schematics ----------------- None Robot Schematics ------------------ None Fabricated ------------ Nothing Repaired ---------- Ion Engine | 30% | -10/Materials Studied --------- None Alien Tech Used ----------------- None Achievements -------------- None Challenges ------------ None Game ------ Seed LongswordLayeredArticulator Manual? 0 Play Time 00:20:00 Cumulative 12.1 hours Start 2025.10.24 @ 16:47:29 End 2025.10.24 @ 17:06:42 Sessions 1 Manual Loads 0 Difficulty Rogue Special Mode None Game No. 13 Rogue 13 Adventurer 0 Explorer 0 Win Type - Total 0 Types 0/0/0/0/0/0/0/0/0/0 Lore% 5 Gallery% 19 Achievement% 12 Wizard Run 0 Options --------- Layout 1 ASCII 0 Keyboard 0 Movement Mouse Keybinds 0 Fullscreen 1 Font 24/Smallcaps Map View 50x35 Zoom Use 0% Tactical HUD 0 Map Filters NONE Filters NONE Steam 1 RUN: ab6559cb-26ac-4635-8eb8-4aceb4efd7ba